[Event "XIV American Continental-ch 2019"]
[Site "Sao Paulo"]
[Date "2019.07.13"]
[Round "10.7"]
[White "Hernandez Sanchez, Jairo Andres"]
[Black "Supi, Luis Paulo"]
[Result "0-1"]
[ECO "B40"]
[WhiteElo "2387"]
[BlackElo "2562"]
[Annotator "RC"]
[PlyCount "108"]
[EventDate "2019.07.05"]
[EventType "swiss"]
[EventCountry "BRA"]
[SourceTitle "playchess.com"]
[Source "ChessBase"]
[SourceQuality "1"]
[TimeControl "40/5400+30:1800+30"]

1. e4 {[%emt 0:00:00]} c5 {[%emt 0:00:00]} 2. Nf3 {[%emt 0:00:02]} e6 {[%emt 0:00:00]} 3. c4 {[%emt 0:01:05]} a6 {[%emt 0:04:29]} 4. d4 {[%emt 0:01:20]} cxd4 {[%emt 0:00:04]} 5. Nxd4 {[%emt 0:00:14]} Nf6 {[%emt 0:00:25]} 6. Nc3 {[%emt 0:00:13]} Qc7 {[%emt 0:00:20]} 7. a3 {[%emt 0:00:49]} b6 {[%emt 0:00:51]} 8. Be3 {[%emt 0:00:38]} Bb7 {[%emt 0:00:04]} 9. f3 {[%emt 0:00:15]} d6 {[%emt 0:02:25]} 10. Be2 {[%emt 0:01:11]} Be7 {[%emt 0:00:04]} 11. O-O {[%emt 0:00:44]} O-O {[%emt 0:00:16]} 12. Qd2 {[%emt 0:02:43]} Re8 {[%emt 0:05:39]} 13. Rfc1 {[%emt 0:01:16]} Nbd7 {[%emt 0:18:01]} 14. a4 {[%emt 0:03:22]} Rab8 {[%emt 0:03:15]} 15. Nd1 {[%emt 0:04:29]} Bd8 {[%emt 0:14:07]} 16. b4 {[%emt 0:08:07]} Rc8 {[%emt 0:01:06]} 17. Nb3 {[%emt 0:09:03]} Qb8 {[%emt 0:03:09]} 18. a5 {[%emt 0:01:54]} Bc7 {[%emt 0:11:15]} 19. axb6 {[%emt 0:04:44]} Nxb6 {[%emt 0:00:08]} 20. Na5 {[%emt 0:02:17]} Ba8 {[%emt 0:00:53]} 21. Nf2 {[%emt 0:05:40]} d5 {[%emt 0:06:14]} 22. c5 {[%emt 0:05:59]} Bxh2+ {[%emt 0:01:51]} 23. Kh1 {[%emt 0:05:28]} Nh5 {[%emt 0:08:23]} 24. cxb6 {[%emt 0:08:52]} Ng3+ {[%emt 0:00:06]} 25. Kxh2 {[%emt 0:00:10]} Nf1+ {[%emt 0:00:09]} 26. Kg1 {[%emt 0:00:18]} Nxd2 {[%emt 0:00:03]} 27. Bxd2 {[%emt 0:00:55]} Qxb6 {[%emt 0:00:21]} 28. Rxc8 {[%emt 0:08:49]} Rxc8 {[%emt 0:00:10]} 29. Nb3 {[%emt 0:00:14]} dxe4 {[%emt 0:05:11]} 30. Rxa6 {[%emt 0:02:13]} Qc7 {[%emt 0:00:34]} 31. fxe4 {[%emt 0:01:51]} Bb7 {[%emt 0:00:42]} 32. Ra2 {[%emt 0:02:56]} Qb6 {[%emt 0:00:39]} 33. Bd3 {[%emt 0:03:09]} Ra8 {[%emt 0:08:52]} 34. Rxa8+ {[%emt 0:01:17]} Bxa8 {[%emt 0:00:01]} 35. Nc5 {[%emt 0:03:25]} Qd6 {[%emt 0:02:29]} 36. Bc3 {[%emt 0:07:17]} Qg3 {[%emt 0:01:04]} 37. b5 {[%emt 0:01:49]} Qe3 {[%emt 0:00:08]} 38. Nb3 {[%emt 0:00:09]} f5 {[%emt 0:02:49]} 39. Bd2 {[%emt 0:01:03]} Qb6 {[%emt 0:00:33]} 40. exf5 {[%emt 0:01:18]} exf5 {[%emt 0:02:35]} 41. Nc1 {[%emt 0:09:07]} Be4 {[%emt 0:05:18]} 42. Bf1 {[%emt 0:02:18]} h6 {[%emt 0:01:43]} 43. Na2 {[%emt 0:12:18]} Bb7 {[%emt 0:01:43]} 44. Nc3 {[%emt 0:00:38]} Qd4 {[%emt 0:00:34]} 45. Be1 {[%emt 0:00:29]} g5 {[%emt 0:00:38]} 46. Ne2 {[%emt 0:01:13]} Qc5 {[%emt 0:07:36]} 47. Nc3 {[%emt 0:02:31]} g4 {[%emt 0:01:13]} 48. Kh1 {[%emt 0:00:27]} Qe3 {[%emt 0:03:06]} 49. Ne2 {[%emt 0:01:48]} h5 {[%emt 0:02:57]} 50. Nd1 {[%emt 0:00:36]} Qd3 {[%emt 0:00:16]} 51. Ndc3 {[%emt 0:00:50]} h4 {[%emt 0:00:33]} 52. Kg1 {[%emt 0:02:49]} f4 {[%emt 0:02:42]} 53. Bxh4 {[%emt 0:00:51]} g3 {[%emt 0:00:11]} 54. Nxg3 {[%emt 0:01:21]} Qd4+ {[%emt 0:00:36]} 0-1

[Event "XIV American Continental-ch 2019"]
[Site "Sao Paulo"]
[Date "2019.07.12"]
[Round "10.12"]
[White "Mieles Palau, Daniel"]
[Black "Cubas, Jose Fernando"]
[Result "1/2-1/2"]
[ECO "A10"]
[WhiteElo "2359"]
[BlackElo "2493"]
[Annotator "ChessBase"]
[PlyCount "70"]
[EventDate "2019.07.05"]
[EventType "swiss"]
[EventCountry "BRA"]
[SourceTitle "playchess.com"]
[Source "ChessBase"]
[SourceQuality "1"]
[TimeControl "40/5400+30:1800+30"]

1. c4 {[%emt 0:00:01]} g6 {[%emt 0:00:00]} 2. Nc3 {[%emt 0:00:42]} Bg7 {[%emt 0:00:19]} 3. g3 {[%emt 0:02:15]} Nf6 {[%emt 0:02:40]} 4. Bg2 {[%emt 0:00:07]} e5 {[%emt 0:00:20]} 5. Nf3 {[%emt 0:04:10]} Nc6 {[%emt 0:01:20]} 6. O-O {[%emt 0:03:48]} O-O {[%emt 0:00:24]} 7. d3 {[%emt 0:01:11]} Re8 {[%emt 0:03:52]} 8. e4 {[%emt 0:05:06]} d6 {[%emt 0:01:30]} 9. h3 {[%emt 0:00:59]} h6 {[%emt 0:15:48]} 10. Be3 {[%emt 0:01:17]} Nh7 {[%emt 0:16:01]} 11. d4 {[%emt 0:08:06]} Ng5 {[%emt 0:04:15]} 12. d5 {[%emt 0:26:52]} Nxf3+ {[%emt 0:10:07]} 13. Qxf3 {[%emt 0:00:32]} Nd4 {[%emt 0:00:25]} 14. Qd1 {[%emt 0:01:15]} c5 {[%emt 0:00:17]} 15. dxc6 {[%emt 0:03:43]} bxc6 {[%emt 0:00:10]} 16. Kh2 {[%emt 0:00:58]} Rb8 {[%emt 0:16:01]} 17. Qd2 {[%emt 0:02:49]} h5 {[%emt 0:08:01]} 18. c5 {[%emt 0:02:33]} dxc5 {[%emt 0:03:39]} 19. Na4 {[%emt 0:08:07]} f5 {[%emt 0:04:59]} 20. exf5 {[%emt 0:01:30]} Bxf5 {[%emt 0:00:55]} 21. Rfc1 {[%emt 0:09:52]} e4 {[%emt 0:02:00]} 22. Qd1 {[%emt 0:02:20]} Rb4 {[%emt 0:03:09]} 23. Nxc5 {[%emt 0:08:50]} Rxb2 {[%emt 0:00:43]} 24. Qa4 {[%emt 0:00:49]} Nf3+ {[%emt 0:00:19]} 25. Kh1 {[%emt 0:00:23]} Qc8 {[%emt 0:00:31]} 26. Rab1 {[%emt 0:01:35]} Rxb1 {[%emt 0:00:47]} 27. Rxb1 {[%emt 0:00:01]} Bxh3 {[%emt 0:00:15]} 28. Rb7 {[%emt 0:00:24]} Rd8 {[%emt 0:02:03]} 29. Qb3+ {[%emt 0:00:50]} Kh8 {[%emt 0:00:11]} 30. Bxf3 {[%emt 0:00:24]} exf3 {[%emt 0:00:37]} 31. Bh6 {[%emt 0:00:53]} Bxh6 {[%emt 0:01:11]} 32. Qc3+ {[%emt 0:00:17]} Kg8 {[%emt 0:00:11]} 33. Qb3+ {[%emt 0:00:01]} Kh8 {[%emt 0:00:53]} 34. Qc3+ {[%emt 0:00:01]} Kg8 {[%emt 0:00:33]} 35. Qb3+ {[%emt 0:00:01]} Kh8 {[%emt 0:00:24]} 1/2-1/2

[Event "XIV American Continental-ch 2019"]
[Site "Sao Paulo"]
[Date "2019.07.12"]
[Round "10.13"]
[White "Hungaski, Robert"]
[Black "Barria Zuniga, Daniel"]
[Result "1-0"]
[ECO "E20"]
[WhiteElo "2488"]
[BlackElo "2379"]
[Annotator "ChessBase"]
[PlyCount "63"]
[EventDate "2019.07.05"]
[EventType "swiss"]
[EventCountry "BRA"]
[SourceTitle "playchess.com"]
[Source "ChessBase"]
[SourceQuality "1"]
[TimeControl "40/5400+30:1800+30"]

1. d4 {[%emt 0:04:47]} Nf6 {[%emt 0:05:36]} 2. c4 {[%emt 0:00:09]} e6 {[%emt 0:00:04]} 3. Nc3 {[%emt 0:00:09]} Bb4 {[%emt 0:00:17]} 4. g3 {[%emt 0:00:07]} c5 {[%emt 0:01:51]} 5. Nf3 {[%emt 0:00:12]} cxd4 {[%emt 0:02:40]} 6. Nxd4 {[%emt 0:00:29]} a6 {[%emt 0:04:42]} 7. Bg2 {[%emt 0:02:00]} Qc7 {[%emt 0:05:38]} 8. Qd3 {[%emt 0:08:30]} Nc6 {[%emt 0:03:24]} 9. Nxc6 {[%emt 0:07:21]} dxc6 {[%emt 0:01:30]} 10. O-O {[%emt 0:03:56]} e5 {[%emt 0:01:14]} 11. Bd2 {[%emt 0:06:56]} Be7 {[%emt 0:06:03]} 12. Na4 {[%emt 0:03:15]} b5 {[%emt 0:13:03]} 13. cxb5 {[%emt 0:03:45]} axb5 {[%emt 0:00:56]} 14. Nc3 {[%emt 0:02:16]} Ra6 {[%emt 0:07:32]} 15. a4 {[%emt 0:06:56]} b4 {[%emt 0:04:09]} 16. Ne4 {[%emt 0:00:18]} Nd7 {[%emt 0:07:29]} 17. Be3 {[%emt 0:06:17]} O-O {[%emt 0:07:30]} 18. b3 {[%emt 0:03:55]} c5 {[%emt 0:03:20]} 19. Rac1 {[%emt 0:02:14]} Rc6 {[%emt 0:02:03]} 20. Rfd1 {[%emt 0:01:44]} Rd8 {[%emt 0:06:23]} 21. Qc2 {[%emt 0:07:34]} Ba6 {[%emt 0:03:58]} 22. Ng5 {[%emt 0:04:45]} Rg6 {[%emt 0:05:02]} 23. Qf5 {[%emt 0:02:39]} Nf6 {[%emt 0:03:27]} 24. Rxd8+ {[%emt 0:07:22]} Qxd8 {[%emt 0:00:08]} 25. Bxc5 {[%emt 0:04:05]} Bxc5 {[%emt 0:00:14]} 26. Rxc5 {[%emt 0:00:05]} h6 {[%emt 0:00:29]} 27. Nf3 {[%emt 0:01:03]} Qd1+ {[%emt 0:00:41]} 28. Bf1 {[%emt 0:00:04]} Bxe2 {[%emt 0:00:13]} 29. Qc8+ {[%emt 0:00:16]} Kh7 {[%emt 0:00:07]} 30. Rc1 {[%emt 0:00:12]} Bxf3 {[%emt 0:04:34]} 31. Rxd1 {[%emt 0:00:14]} Bxd1 {[%emt 0:00:05]} 32. Bc4 {[%emt 0:00:44]} 1-0

[Event "XIV American Continental-ch 2019"]
[Site "Sao Paulo"]
[Date "2019.07.12"]
[Round "10.14"]
[White "Coro, Lucas"]
[Black "Santiago, Yago De Moura"]
[Result "0-1"]
[ECO "C03"]
[WhiteElo "2312"]
[BlackElo "2473"]
[Annotator "ChessBase"]
[PlyCount "72"]
[EventDate "2019.07.05"]
[EventType "swiss"]
[EventCountry "BRA"]
[SourceTitle "playchess.com"]
[Source "ChessBase"]
[SourceQuality "1"]
[TimeControl "40/5400+30:1800+30"]

1. e4 {[%emt 0:00:00]} e6 {[%emt 0:00:31]} 2. d4 {[%emt 0:00:09]} d5 {[%emt 0:00:09]} 3. Nd2 {[%emt 0:00:08]} a6 {[%emt 0:00:14]} 4. Ngf3 {[%emt 0:00:39]} Nf6 {[%emt 0:00:13]} 5. e5 {[%emt 0:01:35]} Nfd7 {[%emt 0:00:08]} 6. Bd3 {[%emt 0:01:21]} c5 {[%emt 0:00:18]} 7. c3 {[%emt 0:00:07]} Nc6 {[%emt 0:00:04]} 8. O-O {[%emt 0:04:02]} g5 {[%emt 0:01:36]} 9. dxc5 {[%emt 0:10:17]} Nxc5 {[%emt 0:00:36]} 10. Be2 {[%emt 0:00:49]} g4 {[%emt 0:07:00]} 11. Nd4 {[%emt 0:00:47]} Nxe5 {[%emt 0:00:11]} 12. Bxg4 {[%emt 0:00:23]} Bd6 {[%emt 0:04:29]} 13. f4 {[%emt 0:22:05]} Nxg4 {[%emt 0:00:32]} 14. Qxg4 {[%emt 0:00:10]} Qf6 {[%emt 0:00:09]} 15. N2b3 {[%emt 0:08:05]} Ne4 {[%emt 0:05:56]} 16. Be3 {[%emt 0:01:36]} Bd7 {[%emt 0:02:21]} 17. Rac1 {[%emt 0:02:37]} a5 {[%emt 0:10:19]} 18. Ne2 {[%emt 0:05:10]} Qg6 {[%emt 0:01:03]} 19. Qf3 {[%emt 0:01:11]} Rg8 {[%emt 0:05:07]} 20. f5 {[%emt 0:09:10]} Qg4 {[%emt 0:02:43]} 21. fxe6 {[%emt 0:07:47]} fxe6 {[%emt 0:00:18]} 22. c4 {[%emt 0:00:18]} Qxf3 {[%emt 0:01:17]} 23. Rxf3 {[%emt 0:00:07]} dxc4 {[%emt 0:00:18]} 24. Rxc4 {[%emt 0:04:00]} Bc6 {[%emt 0:00:38]} 25. Rh3 {[%emt 0:00:35]} Bd5 {[%emt 0:04:00]} 26. Rc2 {[%emt 0:00:41]} Rxg2+ {[%emt 0:04:25]} 27. Kxg2 {[%emt 0:00:08]} Ng5+ {[%emt 0:00:06]} 28. Kf1 {[%emt 0:00:05]} Nxh3 {[%emt 0:00:06]} 29. Nc3 {[%emt 0:00:04]} Bxb3 {[%emt 0:02:54]} 30. axb3 {[%emt 0:00:09]} Ke7 {[%emt 0:00:15]} 31. Ne4 {[%emt 0:06:45]} Rf8+ {[%emt 0:03:38]} 32. Ke2 {[%emt 0:00:40]} Nf4+ {[%emt 0:01:40]} 33. Bxf4 {[%emt 0:00:57]} Rxf4 {[%emt 0:01:37]} 34. Ke3 {[%emt 0:00:32]} Rh4 {[%emt 0:00:30]} 35. Rg2 {[%emt 0:04:16]} Be5 36. Rg8 {[%emt 0:00:49]} Rh3+ {[%emt 0:02:34] Kd4} 0-1

[Event "XIV American Continental-ch 2019"]
[Site "Sao Paulo"]
[Date "2019.07.12"]
[Round "10.17"]
[White "Donoso Diaz, Sebastian"]
[Black "Escalante Ramirez, Brian Sebasti"]
[Result "0-1"]
[ECO "D02"]
[WhiteElo "2239"]
[BlackElo "2447"]
[Annotator "ChessBase"]
[PlyCount "68"]
[EventDate "2019.07.05"]
[EventType "swiss"]
[EventCountry "BRA"]
[SourceTitle "playchess.com"]
[Source "ChessBase"]
[SourceQuality "1"]
[TimeControl "40/5400+30:1800+30"]

1. d4 {[%emt 0:02:07]} d5 {[%emt 0:00:00]} 2. Nf3 {[%emt 0:00:18]} e6 {[%emt 0:00:07]} 3. c4 {[%emt 0:02:22]} c6 {[%emt 0:00:05]} 4. e3 {[%emt 0:01:50]} Bd6 {[%emt 0:00:08]} 5. Bd3 {[%emt 0:02:40]} f5 {[%emt 0:00:02]} 6. O-O {[%emt 0:02:52]} Nf6 {[%emt 0:00:04]} 7. b3 {[%emt 0:09:27]} Qe7 {[%emt 0:00:03]} 8. Bb2 {[%emt 0:01:41]} O-O {[%emt 0:00:10]} 9. Nbd2 {[%emt 0:01:05]} Ne4 {[%emt 0:03:23]} 10. Ne5 {[%emt 0:03:12]} b6 {[%emt 0:07:37]} 11. Rc1 {[%emt 0:16:07]} Bb7 {[%emt 0:00:25]} 12. Bb1 {[%emt 0:02:20]} c5 {[%emt 0:05:37]} 13. Ndf3 {[%emt 0:04:46]} f4 {[%emt 0:13:02]} 14. exf4 {[%emt 0:07:26]} Rxf4 {[%emt 0:02:20]} 15. Nd3 {[%emt 0:04:21]} Rf5 {[%emt 0:19:39]} 16. cxd5 {[%emt 0:06:45]} Bxd5 {[%emt 0:25:38]} 17. dxc5 {[%emt 0:03:53]} bxc5 {[%emt 0:00:19]} 18. Re1 {[%emt 0:05:52]} Nc6 {[%emt 0:01:23]} 19. Re3 {[%emt 0:11:39]} Raf8 {[%emt 0:00:30]} 20. Nde1 {[%emt 0:00:53]} Rf4 {[%emt 0:07:28]} 21. Bxe4 {[%emt 0:00:38]} Rxe4 {[%emt 0:03:56]} 22. Rxe4 {[%emt 0:00:09]} Bxe4 {[%emt 0:00:01]} 23. Rc4 {[%emt 0:01:04]} Rd8 {[%emt 0:00:52]} 24. Qc1 {[%emt 0:01:46]} Bd5 {[%emt 0:00:07]} 25. Rg4 {[%emt 0:00:45]} e5 {[%emt 0:00:03]} 26. Nd3 {[%emt 0:02:15]} Nd4 {[%emt 0:02:36]} 27. Nxd4 {[%emt 0:03:17]} cxd4 {[%emt 0:02:27]} 28. h3 {[%emt 0:01:03]} Be6 {[%emt 0:02:11]} 29. Rg5 {[%emt 0:00:36]} h6 {[%emt 0:01:00]} 30. Rg6 {[%emt 0:00:05]} Bf5 {[%emt 0:00:30]} 31. Rg3 {[%emt 0:00:31]} e4 {[%emt 0:01:40]} 32. Nf4 {[%emt 0:00:06]} Qc7 {[%emt 0:01:28]} 33. Qxc7 {[%emt 0:02:03]} Bxc7 {[%emt 0:00:01]} 34. Bc1 {[%emt 0:00:07]} d3 {[%emt 0:01:15]} 0-1

[Event "XIV American Continental-ch 2019"]
[Site "Sao Paulo"]
[Date "2019.07.12"]
[Round "10.18"]
[White "Acosta, Pablo Alejandro"]
[Black "Garcia Cardenas, Pablo"]
[Result "1/2-1/2"]
[ECO "D05"]
[WhiteElo "1992"]
[BlackElo "2443"]
[Annotator "ChessBase"]
[PlyCount "76"]
[EventDate "2019.07.05"]
[EventType "swiss"]
[EventCountry "BRA"]
[SourceTitle "playchess.com"]
[Source "ChessBase"]
[SourceQuality "1"]
[TimeControl "40/5400+30:1800+30"]

1. d4 {[%emt 0:00:00]} Nf6 {[%emt 0:02:14]} 2. Nf3 {[%emt 0:00:00]} d5 {[%emt 0:00:11]} 3. e3 {[%emt 0:00:00]} e6 {[%emt 0:00:51]} 4. Bd3 {[%emt 0:00:00]} c5 {[%emt 0:00:20]} 5. c3 {[%emt 0:00:21]} Qc7 {[%emt 0:00:38]} 6. Ne5 {[%emt 0:00:33]} Nc6 {[%emt 0:04:17]} 7. f4 {[%emt 0:00:09]} Bd6 {[%emt 0:07:32]} 8. O-O {[%emt 0:00:08]} O-O {[%emt 0:00:16]} 9. Nd2 {[%emt 0:02:24]} Ne7 {[%emt 0:01:22]} 10. g4 {[%emt 0:03:44]} Ne8 {[%emt 0:06:52]} 11. Rf2 {[%emt 0:00:49]} f6 {[%emt 0:01:19]} 12. Nef3 {[%emt 0:00:07]} e5 {[%emt 0:09:24]} 13. fxe5 {[%emt 0:00:36]} fxe5 {[%emt 0:00:20]} 14. dxe5 {[%emt 0:01:45]} Bxe5 {[%emt 0:00:06]} 15. e4 {[%emt 0:11:03]} Bxg4 {[%emt 0:08:27]} 16. exd5 {[%emt 0:01:41]} Nf6 {[%emt 0:00:23]} 17. Nc4 {[%emt 0:03:59]} Bxf3 {[%emt 0:18:40]} 18. Qxf3 {[%emt 0:00:27]} Nexd5 {[%emt 0:00:07]} 19. Bxh7+ {[%emt 0:02:40]} Kxh7 {[%emt 0:00:09]} 20. Qf5+ {[%emt 0:00:07]} g6 {[%emt 0:02:07]} 21. Qxe5 {[%emt 0:01:08]} Qxe5 {[%emt 0:03:10]} 22. Nxe5 {[%emt 0:00:07]} Rae8 {[%emt 0:00:27]} 23. Nf3 {[%emt 0:02:32]} Ng4 {[%emt 0:02:53]} 24. Ng5+ {[%emt 0:00:19]} Kg8 {[%emt 0:01:53]} 25. Rxf8+ {[%emt 0:00:06]} Kxf8 {[%emt 0:00:09]} 26. Nf3 {[%emt 0:03:15]} Re2 {[%emt 0:01:14]} 27. Bd2 {[%emt 0:00:36]} Nde3 {[%emt 0:04:16]} 28. Bxe3 {[%emt 0:02:23]} Rxe3 {[%emt 0:04:40]} 29. Rf1 {[%emt 0:00:19]} Kg7 {[%emt 0:00:09]} 30. h3 {[%emt 0:02:52]} Nh6 {[%emt 0:01:47]} 31. Kf2 {[%emt 0:00:25]} Nf5 {[%emt 0:00:03]} 32. Rd1 {[%emt 0:00:42]} Re7 {[%emt 0:00:04]} 33. a4 {[%emt 0:03:49]} Kf6 {[%emt 0:03:00]} 34. a5 {[%emt 0:01:16]} Rh7 {[%emt 0:00:37]} 35. Rd8 {[%emt 0:02:28]} Rc7 {[%emt 0:01:40]} 36. Nd2 {[%emt 0:02:59]} c4 {[%emt 0:02:30]} 37. Kf3 {[%emt 0:02:20]} Ke5 {[%emt 0:02:48]} 38. Kg4 {[%emt 0:04:49]} Kf6 1/2-1/2

[Event "XIV American Continental-ch 2019"]
[Site "Sao Paulo"]
[Date "2019.07.13"]
[Round "10.19"]
[White "Bittencourt, Jorge"]
[Black "Della Morte, German"]
[Result "1/2-1/2"]
[ECO "E73"]
[WhiteElo "2433"]
[BlackElo "2359"]
[Annotator "RC"]
[PlyCount "133"]
[EventDate "2019.07.05"]
[EventType "swiss"]
[EventCountry "BRA"]
[SourceTitle "playchess.com"]
[Source "ChessBase"]
[SourceQuality "1"]
[TimeControl "40/5400+30:1800+30"]

1. d4 {[%emt 0:00:00]} Nf6 {[%emt 0:04:34]} 2. c4 {[%emt 0:00:00]} g6 {[%emt 0:00:23]} 3. Nc3 {[%emt 0:00:00]} Bg7 {[%emt 0:00:09]} 4. e4 {[%emt 0:00:00]} d6 {[%emt 0:00:15]} 5. Be2 {[%emt 0:00:05]} O-O {[%emt 0:00:05]} 6. Be3 {[%emt 0:00:08]} e5 {[%emt 0:02:21]} 7. d5 {[%emt 0:00:52]} a5 {[%emt 0:01:55]} 8. g4 {[%emt 0:01:02]} Na6 {[%emt 0:01:20]} 9. h4 {[%emt 0:00:14]} c6 {[%emt 0:02:33]} 10. h5 {[%emt 0:01:26]} cxd5 {[%emt 0:00:29]} 11. cxd5 {[%emt 0:00:32]} Bd7 {[%emt 0:00:43]} 12. f3 {[%emt 0:00:32]} Nc5 {[%emt 0:04:51]} 13. Nh3 {[%emt 0:00:23]} a4 {[%emt 0:00:46]} 14. Nf2 {[%emt 0:00:21]} Qa5 {[%emt 0:05:38]} 15. Qd2 {[%emt 0:00:14]} Rfc8 {[%emt 0:01:13]} 16. Ncd1 {[%emt 0:35:10]} Bb5 {[%emt 0:11:01]} 17. Qxa5 {[%emt 0:09:41]} Rxa5 {[%emt 0:00:16]} 18. Rc1 {[%emt 0:02:21]} Bxe2 {[%emt 0:03:43]} 19. Kxe2 {[%emt 0:00:07]} Nfd7 {[%emt 0:04:58]} 20. Nd3 {[%emt 0:04:07]} Bf6 {[%emt 0:03:52]} 21. Bd2 {[%emt 0:08:48]} Raa8 {[%emt 0:01:08]} 22. Nxc5 {[%emt 0:03:47]} Nxc5 {[%emt 0:01:55]} 23. Ne3 {[%emt 0:04:58]} Bg5 {[%emt 0:01:59]} 24. Nc4 {[%emt 0:02:56]} Bxd2 {[%emt 0:00:09]} 25. Kxd2 {[%emt 0:00:07]} Ra6 {[%emt 0:00:21]} 26. Rc3 {[%emt 0:16:53]} f5 {[%emt 0:07:20]} 27. gxf5 gxf5 {[%emt 0:00:05]} 28. Ke3 {[%emt 0:03:06]} Kf7 {[%emt 0:03:08]} 29. Rhc1 {[%emt 0:00:32]} Kf6 {[%emt 0:00:39]} 30. Nxd6 {[%emt 0:01:20]} Rxd6 {[%emt 0:00:05]} 31. Rxc5 {[%emt 0:00:05]} Rxc5 {[%emt 0:00:18]} 32. Rxc5 {[%emt 0:00:04]} Rb6 {[%emt 0:00:53]} 33. Rc2 {[%emt 0:00:20]} Rb4 {[%emt 0:03:54]} 34. Rd2 {[%emt 0:00:59]} Ke7 {[%emt 0:03:43]} 35. Rg2 {[%emt 0:00:12]} Kf6 {[%emt 0:01:11]} 36. Rc2 {[%emt 0:02:16]} Rb6 {[%emt 0:01:38]} 37. Kd3 {[%emt 0:00:55]} fxe4+ {[%emt 0:04:10]} 38. fxe4 {[%emt 0:00:03]} Rb4 {[%emt 0:00:26]} 39. Rg2 {[%emt 0:00:48]} Rd4+ {[%emt 0:00:20]} 40. Ke3 {[%emt 0:00:07]} Rd1 {[%emt 0:01:52]} 41. Rf2+ {[%emt 0:32:57]} Ke7 {[%emt 0:30:22]} 42. Rf5 {[%emt 0:00:00]} Kd6 {[%emt 0:00:00]} 43. Rf7 {[%emt 0:00:00]} Re1+ {[%emt 0:00:00]} 44. Kd3 {[%emt 0:00:00]} Rd1+ {[%emt 0:00:00]} 45. Ke3 {[%emt 0:00:00]} Re1+ {[%emt 0:00:00]} 46. Kd3 {[%emt 0:00:00]} Rd1+ {[%emt 0:00:00]} 47. Ke2 {[%emt 0:00:00]} Rh1 {[%emt 0:00:00]} 48. Rxb7 {[%emt 0:00:00]} Rxh5 {[%emt 0:00:00]} 49. Kd3 {[%emt 0:00:00]} Rh3+ {[%emt 0:00:00]} 50. Kc4 {[%emt 0:00:00]} Rh4 {[%emt 0:00:00]} 51. Rb6+ {[%emt 0:00:00]} Kc7 {[%emt 0:00:00]} 52. Kc5 {[%emt 0:00:00]} Rxe4 {[%emt 0:00:00]} 53. Rh6 {[%emt 0:00:00]} Re2 {[%emt 0:00:00]} 54. Rxh7+ {[%emt 0:00:00]} Kc8 {[%emt 0:00:00]} 55. Ra7 {[%emt 0:02:11]} Rxb2 {[%emt 0:00:00]} 56. Rxa4 {[%emt 0:00:47]} e4 {[%emt 0:00:00]} 57. Kd6 {[%emt 0:03:20]} e3 {[%emt 0:00:00]} 58. Ra8+ {[%emt 0:00:26]} Rb8 {[%emt 0:00:00]} 59. Ra3 {[%emt 0:00:06]} Rb6+ {[%emt 0:00:00]} 60. Ke7 {[%emt 0:01:32]} Rb7+ {[%emt 0:00:00]} 61. Ke6 {[%emt 0:00:51]} e2 {[%emt 0:00:00]} 62. Re3 {[%emt 0:00:19]} Kd8 {[%emt 0:00:00]} 63. d6 {[%emt 0:00:47]} Rb2 {[%emt 0:00:00]} 64. a4 {[%emt 0:00:23]} Ra2 {[%emt 0:00:00]} 65. a5 {[%emt 0:00:24]} Rxa5 {[%emt 0:00:00]} 66. Rxe2 {[%emt 0:00:06]} Ra1 {[%emt 0:00:00]} 67. Re5 {[%emt 0:00:33]} 1/2-1/2

[Event "XIV American Continental-ch 2019"]
[Site "Sao Paulo"]
[Date "2019.07.12"]
[Round "10.20"]
[White "Languidey, Simon Alejandro"]
[Black "Santos, Marcus Vinicius More"]
[Result "0-1"]
[ECO "A04"]
[WhiteElo "2427"]
[BlackElo "2354"]
[Annotator "ChessBase"]
[PlyCount "100"]
[EventDate "2019.07.05"]
[EventType "swiss"]
[EventCountry "BRA"]
[SourceTitle "playchess.com"]
[Source "ChessBase"]
[SourceQuality "1"]
[TimeControl "40/5400+30:1800+30"]

1. Nf3 {[%emt 0:01:58]} g6 {[%emt 0:00:00]} 2. d4 {[%emt 0:00:20]} Bg7 {[%emt 0:00:00]} 3. Bf4 {[%emt 0:00:45]} d6 {[%emt 0:01:00]} 4. e3 {[%emt 0:00:36]} Nf6 {[%emt 0:00:23]} 5. Be2 {[%emt 0:03:17]} O-O {[%emt 0:00:20]} 6. h3 {[%emt 0:00:27]} c5 {[%emt 0:00:20]} 7. O-O {[%emt 0:00:54]} Nc6 {[%emt 0:01:51]} 8. c3 {[%emt 0:00:39]} cxd4 {[%emt 0:01:39]} 9. exd4 {[%emt 0:01:53]} Be6 {[%emt 0:00:20]} 10. Nbd2 {[%emt 0:01:19]} Qb6 {[%emt 0:00:40]} 11. Qc1 {[%emt 0:06:49]} Rac8 {[%emt 0:00:35]} 12. Qb1 {[%emt 0:08:49]} Bf5 {[%emt 0:08:18]} 13. Nc4 {[%emt 0:01:07]} Qc7 {[%emt 0:00:43]} 14. Qd1 {[%emt 0:02:13]} Nd5 {[%emt 0:03:40]} 15. Bg3 {[%emt 0:04:59]} Bh6 {[%emt 0:01:20]} 16. Re1 {[%emt 0:02:07]} b5 {[%emt 0:10:07]} 17. Ncd2 {[%emt 0:01:01]} b4 {[%emt 0:00:26]} 18. c4 {[%emt 0:07:59]} Nc3 {[%emt 0:02:56]} 19. bxc3 {[%emt 0:00:37]} bxc3 {[%emt 0:00:07]} 20. d5 {[%emt 0:00:12]} cxd2 {[%emt 0:03:29]} 21. Nxd2 {[%emt 0:00:28]} Nd4 {[%emt 0:01:30]} 22. Rc1 {[%emt 0:11:02]} Qa5 {[%emt 0:01:35]} 23. Nb3 {[%emt 0:00:15]} Nxb3 {[%emt 0:03:39]} 24. axb3 {[%emt 0:00:08]} Bxc1 {[%emt 0:01:48]} 25. Qxc1 {[%emt 0:00:05]} Rb8 {[%emt 0:01:38]} 26. Bg4 {[%emt 0:01:17]} Bxg4 {[%emt 0:04:54]} 27. hxg4 {[%emt 0:00:08]} Rxb3 {[%emt 0:05:55]} 28. Rxe7 {[%emt 0:01:36]} Rxg3 {[%emt 0:11:41]} 29. fxg3 {[%emt 0:00:12]} Qc5+ {[%emt 0:00:06]} 30. Kh2 {[%emt 0:00:23]} a5 {[%emt 0:00:32]} 31. Rb7 {[%emt 0:02:53]} a4 {[%emt 0:03:16]} 32. Rb5 {[%emt 0:04:11]} Qd4 {[%emt 0:02:47]} 33. Ra5 {[%emt 0:03:01]} Qxg4 {[%emt 0:04:36]} 34. Rxa4 {[%emt 0:00:49]} Qh5+ {[%emt 0:01:30]} 35. Kg1 {[%emt 0:00:14]} Rb8 {[%emt 0:02:47]} 36. Qa1 {[%emt 0:06:48]} Qg5 {[%emt 0:06:31]} 37. Ra8 {[%emt 0:04:28]} Rxa8 {[%emt 0:01:18]} 38. Qxa8+ {[%emt 0:00:12]} Kg7 {[%emt 0:00:03]} 39. Kh2 {[%emt 0:00:49]} Qh6+ {[%emt 0:00:23]} 40. Kg1 {[%emt 0:00:10]} Qc1+ {[%emt 0:00:34]} 41. Kh2 {[%emt 0:30:23]} Qxc4 {[%emt 0:31:02]} 42. Qc6 {[%emt 0:01:58]} Qb4 {[%emt 0:01:03]} 43. Qd7 {[%emt 0:01:05]} h5 {[%emt 0:00:59]} 44. Qe7 {[%emt 0:00:27]} Qc5 {[%emt 0:02:09]} 45. Qe4 {[%emt 0:00:15]} Qc3 {[%emt 0:00:27]} 46. Qf4 {[%emt 0:01:55]} Qe5 {[%emt 0:01:19]} 47. Qc4 {[%emt 0:00:09]} g5 {[%emt 0:05:27]} 48. Kh3 {[%emt 0:01:48]} Kf6 {[%emt 0:02:43]} 49. Qb3 {[%emt 0:03:13]} g4+ {[%emt 0:00:18]} 50. Kh2 {[%emt 0:00:42]} h4 {[%emt 0:00:18]} 0-1